bitfinex-derivatives/quotes_BTCF0:USTF0_20241021
["timestamp","ask_amount","ask_price","bid_price","bid_amount"]
[1729504142382,0.37593654,68376.0,68375.0,0.075173]
[1729504142571,0.56622135,68376.0,68375.0,0.075173]
[1729504142978,0.42843241,68376.0,68375.0,0.075173]
[1729504143183,0.37593654,68376.0,68375.0,0.075173]
[1729504143372,0.42843069,68376.0,68375.0,0.075173]
[1729504144080,0.37593482,68376.0,68375.0,0.075173]
[1729504144285,0.42843069,68376.0,68375.0,0.075173]
[1729504144778,0.295172,68376.0,68375.0,0.075173]
[1729504145176,0.655972,68376.0,68375.0,0.075173]
[1729504145781,0.5828,68376.0,68375.0,0.075173]
[1729504147182,0.655972,68376.0,68375.0,0.075173]
[1729504147385,0.00219436,68379.0,68378.0,0.07317]
[1729504147579,0.07316,68387.0,68375.0,0.65852596]
[1729504147788,0.07316,68387.0,68386.0,0.073161]
[1729504147987,0.3608,68389.0,68382.0,0.10424]
[1729504148180,0.03583453,68388.0,68387.0,0.07316]
[1729504148688,0.433959,68389.0,68387.0,0.07316]
[1729504148987,0.433959,68389.0,68382.0,0.10424]
[1729504148988,0.3608,68389.0,68388.0,0.073159]
[1729504149794,0.433958,68389.0,68388.0,0.073159]
[1729504150399,1.793958,68389.0,68388.0,0.073159]
[1729504150989,1.793958,68389.0,68388.0,0.001]
[1729504151298,1.793958,68389.0,68388.0,0.002]
[1729504151498,1.793958,68389.0,68388.0,0.001]
[1729504151793,1.793958,68389.0,68388.0,0.002]
[1729504152790,1.793958,68389.0,68386.0,0.05722091]
[1729504152791,1.91408389,68389.0,68386.0,0.05722091]
[1729504153001,0.07316,68387.0,68386.0,0.05722091]
[1729504153293,0.13323268,68387.0,68386.0,0.0839764]
[1729504154487,0.13323268,68387.0,68386.0,0.0849764]
[1729504154682,0.19328389,68387.0,68386.0,0.06715477]
[1729504154893,0.19428389,68387.0,68386.0,0.06715477]
[1729504155393,0.13523268,68387.0,68386.0,0.06715477]
[1729504155789,0.19528389,68387.0,68386.0,0.06715477]
[1729504156683,0.36886283,68387.0,68386.0,0.06715477]
[1729504156887,0.42891404,68387.0,68386.0,0.06715477]
[1729504157089,0.36886283,68387.0,68386.0,0.06715477]
[1729504157592,0.13523268,68387.0,68386.0,0.06715477]
[1729504157795,0.19528389,68387.0,68386.0,0.06715477]
[1729504157997,0.13523268,68387.0,68386.0,0.28558746]
[1729504158294,0.19528389,68387.0,68386.0,0.28558746]
[1729504158497,0.13523268,68387.0,68386.0,0.28558746]
[1729504158694,0.19528389,68387.0,68386.0,0.28558746]
[1729504158891,0.19428389,68387.0,68386.0,0.07964234]
[1729504159200,0.13523268,68387.0,68386.0,0.15380334]
[1729504159386,0.13523268,68387.0,68386.0,0.15480334]
[1729504159584,0.13523268,68387.0,68386.0,0.13932301]
[1729504159789,0.002,68387.0,68386.0,0.13932301]
[1729504160584,0.003,68387.0,68386.0,0.13932301]
[1729504160989,0.003,68387.0,68386.0,0.16443003]
[1729504160990,0.002,68387.0,68386.0,0.16443003]
[1729504161191,0.004,68387.0,68386.0,0.16543003]
[1729504165903,0.004,68387.0,68386.0,0.20546802]
[1729504167200,0.2347,68402.0,68386.0,1.15180031]
[1729504167397,0.073143,68404.0,68402.0,0.073144]
[1729504167704,0.39882226,68403.0,68402.0,0.177344]
[1729504168015,0.49620575,68403.0,68402.0,0.1042]
[1729504168395,0.49620575,68403.0,68402.0,0.177344]
[1729504168696,0.49620575,68403.0,68402.0,0.178344]
[1729504168697,0.49820575,68403.0,68402.0,0.178344]
[1729504170301,0.49820575,68403.0,68402.0,0.179344]
[1729504171004,0.49820575,68403.0,68402.0,0.2060627]
[1729504171207,0.49620575,68403.0,68402.0,0.2050627]
[1729504172496,0.49401188,68403.0,68402.0,0.2050627]
[1729504173808,0.49401188,68403.0,68402.0,0.14847644]
[1729504174810,0.3608,68403.0,68402.0,0.36758426]
[1729504176306,0.3608,68403.0,68402.0,0.36658426]
[1729504176505,0.3608,68403.0,68402.0,0.36758426]
[1729504176910,0.3608,68403.0,68402.0,0.36858426]
[1729504177105,0.3608,68403.0,68402.0,0.36758426]
[1729504177615,0.3608,68403.0,68402.0,0.36858426]
[1729504178302,0.2244,68410.0,68409.0,0.073137]
[1729504179512,0.2244,68410.0,68409.0,0.074137]
[1729504179917,0.297536,68410.0,68409.0,0.002]
[1729504180116,0.539236,68410.0,68403.0,0.030977]
[1729504180313,0.539236,68410.0,68401.0,0.030975]
[1729504180314,0.3608,68404.0,68401.0,0.030975]
[1729504180514,0.073144,68402.0,68401.0,0.030975]
[1729504180716,0.073144,68402.0,68401.0,0.10412]
[1729504181310,0.073144,68402.0,68401.0,0.073145]
[1729504181518,0.073144,68402.0,68401.0,0.178265]
[1729504182012,0.073144,68402.0,68401.0,0.074145]
[1729504183008,0.074144,68402.0,68401.0,0.074145]
[1729504183209,0.074144,68402.0,68401.0,0.001]
[1729504183905,0.076144,68402.0,68401.0,0.02820774]
[1729504184319,0.076144,68402.0,68401.0,0.10135274]
[1729504190214,0.15687497,68402.0,68401.0,0.10135274]
[1729504197918,0.076144,68402.0,68401.0,0.10135274]
[1729504200221,0.436944,68402.0,68401.0,0.10135274]
[1729504203714,0.076144,68402.0,68401.0,0.10135274]
[1729504203918,0.436944,68402.0,68401.0,0.10135274]
[1729504204115,0.076144,68402.0,68401.0,0.10135274]
[1729504204320,0.436944,68402.0,68401.0,0.10135274]
[1729504205535,0.076144,68402.0,68401.0,0.10135274]
[1729504205733,0.436944,68402.0,68401.0,0.10135274]
[1729504206233,0.3638,68402.0,68401.0,0.10135274]
[1729504206430,0.003,68402.0,68401.0,0.10135274]
[1729504206626,0.001,68402.0,68401.0,0.31925218]
[1729504207325,0.3608,68414.0,68413.0,0.073133]
[1729504208616,0.3618,68414.0,68413.0,0.074133]
[1729504208818,0.3618,68414.0,68413.0,0.075133]
[1729504212025,0.44251887,68414.0,68413.0,0.075133]
[1729504212325,0.49498236,68414.0,68413.0,0.10178736]
[1729504214828,0.49498236,68414.0,68411.0,0.7115]
[1729504215032,0.13318236,68413.0,68412.0,0.073134]
[1729504215223,0.13318236,68413.0,68412.0,0.29094603]
[1729504216131,0.27048441,68413.0,68412.0,0.29094603]
[1729504216329,0.27148441,68413.0,68412.0,0.29194603]
[1729504216530,0.13418236,68413.0,68412.0,0.39598603]
[1729504216927,0.27146614,68413.0,68412.0,0.39598603]
[1729504217322,0.63226614,68413.0,68412.0,0.39698603]
[1729504217525,0.75686263,68413.0,68412.0,0.074134]
[1729504217733,0.75686263,68413.0,68412.0,0.075134]
[1729504217734,0.56811536,68413.0,68412.0,0.075134]
[1729504217932,0.56811536,68413.0,68412.0,0.002]
[1729504218136,0.56811536,68413.0,68406.0,0.10404]
[1729504218341,0.433939,68407.0,68406.0,0.10404]
[1729504218527,0.49398236,68407.0,68401.0,0.02664737]
[1729504218734,0.61708236,68406.0,68404.0,0.030896]
[1729504218933,0.073143,68404.0,68403.0,0.177183]
[1729504219231,0.15386187,68404.0,68403.0,0.177183]
[1729504220129,0.10896341,68404.0,68403.0,0.177183]
[1729504220332,0.03582041,68404.0,68403.0,0.178183]
[1729504220537,0.4859,68406.0,68403.0,0.10504]
[1729504220538,0.03582041,68405.0,68403.0,0.10504]
[1729504220744,0.55904,68406.0,68405.0,0.073141]
[1729504220945,0.59286463,68406.0,68405.0,0.073141]
[1729504221245,0.55704,68406.0,68405.0,0.073141]
[1729504221448,0.51972343,68406.0,68405.0,0.073141]
[1729504221634,0.88052456,68406.0,68405.0,0.073141]
[1729504221833,0.073141,68405.0,68404.0,0.10404]
[1729504222033,0.10896556,68405.0,68404.0,0.10404]
[1729504222333,0.073142,68404.0,68403.0,0.074143]
[1729504222529,0.10896656,68404.0,68403.0,0.074143]
[1729504222930,0.10896656,68404.0,68403.0,0.001]
[1729504223331,0.03582456,68404.0,68401.0,0.10404]
[1729504223532,0.073147,68401.0,68400.0,0.073146]
[1729504223833,0.073146,68400.0,68399.0,0.177188]
[1729504224041,0.46977056,68400.0,68399.0,0.177188]
[1729504224542,0.46977251,68400.0,68399.0,0.073148]
[1729504225137,0.10897251,68400.0,68399.0,0.073148]
[1729504225343,0.46977251,68400.0,68399.0,0.09946893]
[1729504225651,0.433946,68400.0,68399.0,0.09946893]
[1729504226137,0.47277249,68400.0,68399.0,0.10146893]
[1729504227543,0.11197249,68400.0,68399.0,0.10146893]
[1729504228048,0.15687717,68400.0,68399.0,0.10146893]
[1729504228542,0.51767717,68400.0,68399.0,0.10146893]
[1729504228746,0.57014794,68400.0,68399.0,0.10146893]
[1729504229446,0.57014832,68400.0,68399.0,0.10146893]
[1729504230846,0.5176789,68400.0,68399.0,0.02832093]
[1729504231841,0.5176789,68400.0,68399.0,0.002]
[1729504232047,0.57015406,68400.0,68399.0,0.002]
[1729504232849,0.57015406,68400.0,68391.0,0.10408]
[1729504233046,0.073156,68391.0,68390.0,0.073156]
[1729504233238,0.20636406,68391.0,68390.0,0.073156]
[1729504233547,0.43696406,68391.0,68390.0,0.073156]
[1729504234049,0.36380806,68391.0,68386.0,0.10408]
[1729504234243,0.07316,68387.0,68386.0,0.177239]
[1729504234547,0.07316,68387.0,68386.0,0.073159]
[1729504235748,0.07316,68387.0,68386.0,0.079159]
[1729504236442,0.07316,68387.0,68386.0,0.01]
[1729504236646,0.07316,68387.0,68386.0,0.004]
[1729504236952,0.07316,68387.0,68386.0,0.008]
[1729504237254,0.07316,68387.0,68384.0,0.32620452]
[1729504237255,0.073162,68385.0,68384.0,0.3]
[1729504237448,0.073164,68384.0,68383.0,0.00219275]
[1729504237646,0.872644,68384.0,68383.0,0.00219275]
[1729504237941,0.872644,68384.0,68363.0,0.677785]
[1729504237942,0.79948,68384.0,68369.0,0.00219405]
[1729504238149,0.433979,68370.0,68369.0,0.00219405]
[1729504238651,0.3608,68370.0,68369.0,0.07537405]
[1729504239749,0.3608,68370.0,68369.0,0.10261288]
[1729504240248,0.3658,68370.0,68369.0,0.10261288]
[1729504240851,0.3608,68370.0,68369.0,0.10261288]
[1729504241059,0.3668,68370.0,68369.0,0.10261288]
[1729504242357,0.3718,68370.0,68369.0,0.10161288]
[1729504244053,0.690779,68370.0,68369.0,0.02843288]
[1729504244361,0.936379,68370.0,68369.0,0.02843288]
[1729504248451,0.575579,68370.0,68369.0,0.02843288]
[1729504248650,1.297179,68370.0,68369.0,0.02843288]
[1729504259662,1.33302487,68370.0,68369.0,0.02843288]
[1729504260566,0.97222488,68370.0,68369.0,0.10161288]
[1729504260770,0.936379,68370.0,68369.0,0.10161288]
[1729504262461,0.97222391,68370.0,68369.0,0.02843288]
[1729504263666,1.01715331,68370.0,68369.0,0.10161288]
[1729504264663,0.65635331,68370.0,68369.0,0.10161288]
[1729504264959,1.01715331,68370.0,68369.0,0.10161288]
[1729504265164,0.936379,68370.0,68369.0,0.10161288]
[1729504265580,0.936379,68370.0,68369.0,0.15993997]
[1729504266463,0.936379,68370.0,68369.0,0.10161288]
[1729504267560,0.936379,68370.0,68369.0,0.17452174]
[1729504267769,0.6176,68370.0,68369.0,0.17452174]
[1729504268067,0.3608,68378.0,68374.0,0.073174]
[1729504268258,0.073172,68377.0,68376.0,0.073172]
[1729504268455,0.073172,68377.0,68376.0,0.25788623]
[1729504268764,0.073173,68376.0,68375.0,0.07317824]
[1729504268958,0.073173,68376.0,68374.0,0.07317824]
[1729504269154,0.073173,68376.0,68375.0,0.07317824]
[1729504269562,0.073173,68376.0,68374.0,0.07417824]
[1729504269761,0.073173,68376.0,68374.0,0.14735224]
[1729504269958,0.007,68377.0,68376.0,0.073172]
[1729504270966,0.3608,68378.0,68377.0,0.073171]
[1729504274274,0.3608,68378.0,68377.0,0.307571]
[1729504274673,0.3608,68378.0,68377.0,0.308571]
[1729504274970,0.3628,68378.0,68377.0,0.309571]
[1729504275670,0.3628,68378.0,68377.0,0.547171]
[1729504278368,0.3628,68378.0,68377.0,0.546171]
[1729504278580,0.3628,68378.0,68377.0,0.547171]
[1729504280273,0.44355544,68378.0,68377.0,0.547171]
[1729504281072,0.44355537,68378.0,68377.0,0.547171]
[1729504283171,0.44355537,68378.0,68377.0,0.651171]
[1729504283982,0.08275537,68378.0,68377.0,0.651171]
[1729504284876,0.07275537,68378.0,68377.0,0.87010404]
[1729504285875,0.03583405,68378.0,68377.0,0.87010404]
[1729504287176,0.55056779,68389.0,68377.0,0.79693304]
[1729504287373,0.3608,68389.0,68388.0,0.073159]
[1729504288678,0.2358,68397.0,68388.0,0.177159]
[1729504288878,0.2358,68397.0,68396.0,0.073151]
[1729504290381,1.36307336,68401.0,68400.0,0.073146]
[1729504290574,1.36219336,68401.0,68400.0,0.073146]
[1729504290777,0.00219336,68401.0,68400.0,0.073146]
[1729504291871,0.00219336,68401.0,68400.0,0.075146]
[1729504293787,0.00219336,68401.0,68400.0,0.10156029]
[1729504295281,0.03801997,68401.0,68400.0,0.10156029]
[1729504296570,0.03801997,68401.0,68400.0,0.20552029]
[1729504297076,0.03582661,68401.0,68400.0,0.20552029]
[1729504297276,0.2457,68416.0,68409.0,0.073137]
[1729504297481,0.2457,68416.0,68414.0,0.073131]
[1729504297482,0.08072187,68415.0,68414.0,0.073131]
[1729504298275,0.03582174,68415.0,68414.0,0.073131]
[1729504300487,0.10895001,68415.0,68414.0,0.001]
[1729504300982,0.10895001,68415.0,68414.0,0.002]
[1729504302376,0.10895001,68415.0,68411.0,0.073135]
[1729504302377,0.13318333,68415.0,68407.0,0.10392]
[1729504302584,0.58978333,68414.0,68407.0,0.10392]
[1729504302797,0.13318333,68413.0,68411.0,0.073135]
[1729504303097,0.13318333,68412.0,68411.0,0.073135]
[1729504304189,0.13318333,68412.0,68411.0,0.074135]
[1729504304584,0.13318333,68412.0,68411.0,0.10055749]
[1729504305079,0.09736332,68412.0,68411.0,0.10055749]
[1729504305387,0.13318188,68412.0,68411.0,0.10055749]
[1729504306002,0.13518188,68412.0,68411.0,0.10155749]
[1729504306488,0.27173721,68412.0,68411.0,0.10155749]
[1729504307288,0.08271765,68412.0,68411.0,0.10155749]
[1729504310100,0.08271824,68412.0,68411.0,0.10155749]
[1729504310296,0.002,68412.0,68411.0,0.10155749]
[1729504314499,0.03782093,68412.0,68411.0,0.10155749]
[1729504316395,0.08271937,68412.0,68411.0,0.10155749]
[1729504317290,0.19521167,68412.0,68411.0,0.02742249]
[1729504317598,0.13518299,68412.0,68411.0,0.073134]
[1729504320309,0.49598299,68412.0,68411.0,0.073134]
[1729504320512,0.55601167,68412.0,68411.0,0.073134]
[1729504320804,0.55601167,68412.0,68411.0,0.09988513]
[1729504321599,0.49598299,68412.0,68411.0,0.09988513]
[1729504323496,0.49598299,68412.0,68411.0,0.08989662]
[1729504325399,0.44351937,68412.0,68411.0,0.08989662]
[1729504327900,0.49598176,68412.0,68411.0,0.08989662]
[1729504328204,0.13518176,68412.0,68411.0,0.08989662]
[1729504328397,0.08271937,68412.0,68411.0,0.08989662]
[1729504328597,0.002,68412.0,68411.0,0.08989662]
[1729504329406,0.03781903,68412.0,68411.0,0.08989662]
[1729504330003,0.08271575,68412.0,68411.0,0.30892126]
[1729504331309,0.08071575,68412.0,68411.0,0.30892126]
[1729504331510,0.08271575,68412.0,68411.0,0.30992126]
[1729504331712,0.08271575,68412.0,68411.0,0.19477662]
[1729504332011,0.03781903,68412.0,68411.0,0.19477662]
[1729504332311,0.03981903,68412.0,68411.0,0.19577662]
[1729504335303,0.08471351,68412.0,68411.0,0.19577662]
[1729504335509,0.08471351,68412.0,68411.0,0.09189662]
[1729504335710,0.08471351,68412.0,68411.0,0.19577662]
[1729504336707,0.44551351,68412.0,68411.0,0.09189662]
[1729504338911,0.3648,68412.0,68411.0,0.09189662]
[1729504340403,0.49797699,68412.0,68411.0,0.09189662]
[1729504341402,0.40062009,68412.0,68411.0,0.09189662]
[1729504341603,0.44551813,68412.0,68411.0,0.09189662]
[1729504341807,0.40062009,68412.0,68411.0,0.09189662]
[1729504344510,0.44551698,68412.0,68411.0,0.09189662]
[1729504344713,0.44551523,68412.0,68411.0,0.09189662]
[1729504347614,0.4006188,68412.0,68411.0,0.09189662]
[1729504348408,0.44551639,68412.0,68411.0,0.09189662]
[1729504349014,0.49797886,68412.0,68411.0,0.09189662]
[1729504351717,0.49797886,68412.0,68411.0,0.02161026]
[1729504351916,0.49797886,68412.0,68411.0,0.002]
[1729504352224,0.49797886,68412.0,68411.0,0.10588]
[1729504352524,0.49797886,68412.0,68411.0,0.179014]
[1729504353128,0.55800622,68412.0,68411.0,0.179014]
[1729504353419,0.49797886,68412.0,68411.0,0.179014]
[1729504353630,0.55800622,68412.0,68411.0,0.179014]
[1729504353818,0.19720622,68412.0,68411.0,0.179014]
[1729504355020,0.19720511,68412.0,68411.0,0.179014]
[1729504355815,0.43084007,68412.0,68411.0,0.179014]
[1729504356224,0.37081271,68412.0,68411.0,0.179014]
[1729504356427,0.31835024,68412.0,68411.0,0.179014]
[1729504356623,0.08471528,68412.0,68411.0,0.179014]
[1729504358521,0.08471528,68412.0,68411.0,0.075134]
[1729504358721,0.08471528,68412.0,68411.0,0.179014]
[1729504361531,0.03981882,68412.0,68411.0,0.179014]
[1729504362027,0.03981882,68412.0,68411.0,0.075134]
[1729504362217,0.40061882,68412.0,68411.0,0.178974]
[1729504362418,0.40061882,68412.0,68411.0,0.075134]
[1729504362623,0.40061882,68412.0,68411.0,0.178974]
[1729504363528,0.49797995,68412.0,68411.0,0.178974]
[1729504364425,0.49797995,68412.0,68411.0,0.075134]
[1729504364732,0.49798026,68412.0,68411.0,0.17146061]
[1729504364931,0.49798026,68412.0,68411.0,0.06762061]
[1729504365231,0.49798026,68412.0,68411.0,0.17146061]
[1729504368637,0.49798026,68412.0,68411.0,0.14440237]
[1729504368638,0.55800828,68412.0,68411.0,0.14440237]
[1729504369824,0.55800939,68412.0,68411.0,0.14440237]
[1729504370644,0.55800939,68412.0,68410.0,0.02597988]
[1729504370838,0.3648,68412.0,68411.0,0.10384]
[1729504371139,0.4979837,68412.0,68411.0,0.10384]
[1729504371528,0.3648,68412.0,68411.0,0.10384]
[1729504372424,0.3648,68412.0,68411.0,0.176974]
[1729504372629,0.3658,68412.0,68411.0,0.176974]
[1729504373543,0.3658,68412.0,68411.0,0.177974]
[1729504378045,0.3658,68412.0,68411.0,0.2042906]
[1729504378641,0.46316072,68412.0,68411.0,0.16923325]
[1729504378838,0.52318849,68412.0,68411.0,0.16923325]
[1729504379039,0.69693819,68412.0,68411.0,0.16923325]
[1729504379535,0.69693819,68412.0,68411.0,0.06539325]
[1729504379735,0.69693819,68412.0,68411.0,0.16923325]
[1729504380036,0.46316072,68412.0,68411.0,0.16923325]
[1729504382547,0.46316072,68412.0,68411.0,0.06539325]
[1729504384545,0.46316072,68412.0,68411.0,0.0273166]
[1729504385248,0.46316072,68412.0,68411.0,0.1004506]
[1729504385633,0.3658,68412.0,68411.0,0.1004506]
[1729504389149,0.005,68412.0,68411.0,0.1004506]
[1729504389348,0.3658,68412.0,68411.0,0.1004506]
[1729504389649,0.41070128,68412.0,68400.0,0.073146]
[1729504389838,0.3608,68401.0,68400.0,0.073146]
[1729504390435,0.3608,68401.0,68397.0,0.00219295]
[1729504390436,0.073149,68398.0,68397.0,0.00219295]
[1729504390836,0.11806263,68398.0,68397.0,0.07534295]
[1729504391047,1.36,68398.0,68397.0,0.07534295]
[1729504391846,1.363,68398.0,68397.0,0.07534295]
[1729504392243,1.363,68398.0,68397.0,0.07634295]
[1729504392449,1.367,68398.0,68397.0,0.07634295]
[1729504397849,0.007,68398.0,68397.0,0.07634295]
[1729504400555,0.1043896,68398.0,68397.0,0.07634295]
[1729504401262,0.1043896,68398.0,68397.0,0.07415]
[1729504405659,0.05191121,68398.0,68397.0,0.07415]
[1729504406463,0.05191121,68398.0,68397.0,0.06408854]
[1729504407757,0.05191039,68398.0,68397.0,0.06408854]
[1729504408559,0.007,68398.0,68397.0,0.06408854]
[1729504409160,0.080149,68398.0,68397.0,0.06408854]
[1729504414167,0.080149,68398.0,68397.0,0.001]
[1729504418359,0.440949,68398.0,68397.0,0.001]
[1729504422867,0.080149,68398.0,68397.0,0.001]
[1729504423064,0.440949,68398.0,68397.0,0.001]
[1729504423663,0.53834108,68398.0,68397.0,0.001]
[1729504429573,0.53834108,68398.0,68397.0,0.07415]
[1729504430690,0.440949,68398.0,68397.0,0.07415]
[1729504436072,0.3678,68398.0,68397.0,0.07415]
[1729504437781,0.007,68398.0,68397.0,0.17791]
[1729504438084,0.007,68398.0,68397.0,0.42211]
[1729504438675,0.0519056,68398.0,68397.0,0.42211]
[1729504439376,0.0519056,68398.0,68397.0,1.0012374]
[1729504439786,0.05247184,68403.0,68402.0,0.073137]
[1729504439970,0.073127,68411.0,68402.0,0.073137]
[1729504440578,0.073127,68411.0,68410.0,0.073128]
[1729504442585,0.05247184,68413.0,68412.0,0.073126]
[1729504443085,0.12559684,68413.0,68412.0,0.073126]
[1729504444385,0.12959684,68413.0,68412.0,0.074126]
[1729504444884,0.17449621,68413.0,68412.0,0.074126]
[1729504445383,0.18049621,68413.0,68412.0,0.075126]
[1729504445780,0.083125,68413.0,68412.0,0.075126]
[1729504446876,0.12802461,68413.0,68412.0,0.075126]
[1729504447387,0.083125,68413.0,68412.0,0.075126]
[1729504448274,0.083125,68413.0,68412.0,0.10082644]
[1729504450083,0.083125,68413.0,68412.0,0.02770044]
[1729504450494,0.303425,68413.0,68412.0,0.02770044]
[1729504452787,0.303425,68413.0,68412.0,0.10082644]
[1729504453884,0.18048796,68413.0,68412.0,0.0907438]
[1729504455484,0.37001744,68413.0,68412.0,0.0907438]
[1729504455890,0.37001793,68413.0,68412.0,0.0907438]
[1729504456087,0.18048845,68413.0,68412.0,0.0907438]
[1729504456687,0.10736345,68413.0,68412.0,0.0907438]
[1729504459186,0.29694191,68413.0,68412.0,0.0907438]
[1729504459587,0.10736345,68413.0,68412.0,0.0907438]
[1729504459892,0.18048845,68413.0,68412.0,0.0907438]
[1729504460793,0.083125,68413.0,68412.0,0.0907438]
[1729504461291,0.01,68413.0,68412.0,0.0907438]
[1729504469498,0.083125,68413.0,68412.0,0.0907438]
[1729504474414,0.01,68413.0,68412.0,0.0907438]
[1729504475902,0.05489668,68413.0,68412.0,0.0907438]
[1729504476806,0.24453468,68413.0,68412.0,0.0907438]
[1729504477111,0.05489668,68413.0,68412.0,0.0907438]
[1729504477407,0.1073581,68413.0,68412.0,0.43483502]
[1729504477999,0.1073581,68413.0,68412.0,0.87335502]
[1729504478202,0.24497518,68413.0,68412.0,0.87335502]
[1729504478703,0.05789668,68413.0,68412.0,0.87435502]
[1729504478900,0.05789668,68413.0,68412.0,0.87535502]
[1729504479296,0.05789668,68413.0,68412.0,1.09460479]
[1729504480101,0.013,68413.0,68412.0,1.09460479]
[1729504480409,0.013,68413.0,68412.0,0.65608479]
[1729504481296,0.013,68413.0,68412.0,0.29528479]
[1729504481607,0.013,68413.0,68412.0,0.65608479]
[1729504482799,0.013,68413.0,68412.0,0.75960479]
[1729504491017,0.05789092,68413.0,68412.0,0.75960479]
[1729504494026,0.09370483,68413.0,68412.0,0.75960479]
[1729504495313,0.09370481,68413.0,68412.0,0.75960479]
[1729504498918,0.073113,68425.0,68412.0,1.19812479]
[1729504499123,0.073113,68425.0,68424.0,0.073113]
[1729504499823,0.2381,68429.0,68422.0,0.10352]
[1729504500122,0.2381,68429.0,68426.0,0.073111]
[1729504500123,0.433912,68427.0,68426.0,0.073111]
[1729504500924,0.439912,68427.0,68426.0,0.073111]
[1729504501117,0.006,68427.0,68426.0,0.073111]
[1729504501320,0.006,68427.0,68426.0,0.65402135]
[1729504501625,0.006,68427.0,68426.0,0.176631]
[1729504502010,0.006,68427.0,68426.0,0.2032215]
[1729504502425,0.07911,68427.0,68426.0,0.2032215]
[1729504503122,0.006,68427.0,68426.0,0.2032215]
[1729504503329,0.2199,68428.0,68427.0,0.07311]
[1729504504319,1.5981,68429.0,68428.0,0.073109]
[1729504504522,1.36,68429.0,68428.0,0.073109]
[1729504504723,1.36,68429.0,68428.0,0.29155978]
[1729504505033,1.36,68429.0,68428.0,0.176629]
[1729504506236,1.599,68429.0,68428.0,0.176629]
[1729504506422,1.599,68429.0,68428.0,0.10352]
[1729504506620,2.140508,68429.0,68428.0,0.10352]
[1729504506827,2.0674,68429.0,68428.0,0.03041]
[1729504507024,2.0674,68429.0,68428.0,0.10352]
[1729504507231,0.073118,68420.0,68419.0,0.433919]
[1729504507429,0.073118,68420.0,68419.0,0.537439]
[1729504507840,0.073118,68420.0,68419.0,0.433919]
[1729504508135,0.073118,68420.0,68419.0,0.537439]
[1729504508734,0.073114,68424.0,68423.0,0.073112]
[1729504510231,0.10892728,68424.0,68423.0,0.073112]
[1729504510539,0.10892728,68424.0,68423.0,0.176632]
[1729504511130,0.03581328,68424.0,68423.0,0.176632]
[1729504511433,0.07311,68428.0,68423.0,0.176632]
[1729504511434,2.06816,68429.0,68428.0,0.073109]
[1729504511630,2.10321272,68429.0,68428.0,0.073109]
[1729504512030,2.0674,68429.0,68428.0,0.073109]
[1729504512233,1.87481078,68429.0,68428.0,0.073109]
[1729504512440,0.27481078,68429.0,68428.0,0.073109]
[1729504512637,0.239,68429.0,68428.0,0.073109]
[1729504513740,0.239,68429.0,68428.0,0.09888174]
[1729504514036,0.31969152,68429.0,68428.0,0.09888174]
[1729504519343,0.39279952,68429.0,68428.0,0.02577274]
[1729504519646,0.39279952,68429.0,68426.0,0.1034]
[1729504519647,0.07311,68427.0,68426.0,0.1034]
[1729504519841,0.15380152,68427.0,68426.0,0.1034]
[1729504520236,0.63660152,68427.0,68426.0,0.1034]
[1729504520431,0.073112,68425.0,68424.0,0.1034]
[1729504520640,0.15380352,68425.0,68424.0,0.02684678]
[1729504520841,0.15380352,68425.0,68423.0,0.073115]
[1729504520842,0.073114,68424.0,68423.0,0.073115]
[1729504522151,0.3608,68425.0,68421.0,0.06971134]
[1729504522449,0.3608,68425.0,68421.0,0.0258393]
[1729504522450,0.073116,68422.0,68421.0,0.0258393]
[1729504522746,0.073116,68422.0,68420.0,0.22043004]
[1729504523041,1.36,68421.0,68420.0,0.22043004]
[1729504523541,1.36,68421.0,68420.0,0.11699004]
[1729504523754,1.36,68421.0,68420.0,0.1429637]
[1729504524044,1.36,68421.0,68420.0,0.14291185]
[1729504524243,1.36,68421.0,68420.0,0.09909166]
[1729504528450,1.36,68421.0,68420.0,0.14291133]
[1729504528652,1.36,68421.0,68420.0,0.09909166]
[1729504530753,1.39581438,68421.0,68420.0,0.09909166]
[1729504531653,1.39581408,68421.0,68420.0,0.09909166]
[1729504533249,1.36,68421.0,68420.0,0.09909166]
[1729504533747,1.46893084,68421.0,68420.0,0.09909166]
[1729504533943,1.433117,68421.0,68420.0,0.09909166]
[1729504534356,1.46893084,68421.0,68420.0,0.09909166]
[1729504534851,1.433117,68421.0,68420.0,0.09909166]
[1729504535047,1.46893083,68421.0,68420.0,0.09909166]
[1729504536050,1.433117,68421.0,68420.0,0.09909166]
[1729504539354,1.36,68421.0,68420.0,0.09909166]
[1729504544157,1.49315816,68421.0,68420.0,0.09909166]
[1729504546860,1.56627516,68421.0,68420.0,0.09909166]
[1729504547745,1.56627668,68421.0,68420.0,0.09909166]
[1729504551056,1.433117,68421.0,68420.0,0.09909166]
[1729504552158,1.433117,68421.0,68420.0,0.14291725]
[1729504552358,1.433117,68421.0,68420.0,0.09909166]
[1729504552958,1.433117,68421.0,68420.0,0.02597366]
[1729504553161,1.36,68421.0,68418.0,0.073119]
[1729504553365,0.073119,68419.0,68418.0,0.073119]
[1729504555162,0.073119,68419.0,68418.0,0.1170208]
[1729504557456,0.073119,68419.0,68418.0,0.073119]
[1729504564571,0.433919,68419.0,68418.0,0.073119]
[1729504566072,0.56709051,68419.0,68418.0,0.073119]
[1729504571191,0.56709086,68419.0,68418.0,0.073119]
[1729504574179,0.433919,68419.0,68418.0,0.073119]
[1729504581101,0.51463227,68419.0,68418.0,0.073119]
[1729504581500,0.07312,68418.0,68417.0,0.02579913]
[1729504581689,0.08071327,68418.0,68414.0,0.07531491]
[1729504581881,0.073123,68415.0,68414.0,0.07531491]
[1729504582083,0.10894093,68415.0,68414.0,0.10170624]
[1729504582394,0.15383627,68415.0,68414.0,0.10170624]
[1729504582604,0.15383661,68415.0,68414.0,0.10170624]
[1729504589101,0.073123,68415.0,68414.0,0.10170624]
[1729504589691,0.073123,68415.0,68414.0,0.02858324]
[1729504596294,0.511643,68415.0,68414.0,0.02639133]
[1729504596602,0.511643,68415.0,68401.0,0.1034]
[1729504596603,0.073137,68402.0,68401.0,0.1034]
[1729504596808,0.073137,68402.0,68401.0,0.176538]
[1729504597196,0.073134,68405.0,68404.0,0.073133]